[Event "Championnat d'Europe Rapide"]
[Date "2024.12.08"]
[White "Muradli, Mahammad"]
[Black "Fridman, Daniel"]
[WhiteElo "2588"]
[BlackElo "2571"]
[Round "11.9"]
[Result "1-0"]
[TimeControl "900+10"]

1. Nf3 {[%emt 00:00:04] [%clk 00:15:16]} d5 {[%emt 00:01:05] [%clk 00:14:15]} 2.
c4 {[%emt 00:00:02] [%clk 00:15:24]} e6 {[%emt 00:00:06] [%clk 00:14:20]} 3. g3
{[%emt 00:00:01] [%clk 00:15:32]} Nf6 {[%emt 00:00:04] [%clk 00:14:25]} 4. Bg2
{[%emt 00:00:03] [%clk 00:15:40]} c5 {[%emt 00:00:34] [%clk 00:14:01]} 5. O-O
{[%emt 00:00:42] [%clk 00:15:08]} Nc6 {[%emt 00:00:22] [%clk 00:13:48]} 6. d4
{[%emt 00:00:15] [%clk 00:15:03]} dxc4 {[%emt 00:00:03] [%clk 00:13:56]} 7. dxc5
{[%emt 00:00:01] [%clk 00:15:12]} Qxd1 {[%emt 00:00:07] [%clk 00:13:59]} 8. Rxd1
{[%emt 00:00:02] [%clk 00:15:20]} Bxc5 {[%emt 00:00:01] [%clk 00:14:07]} 9. Nbd2
{[%emt 00:00:02] [%clk 00:15:28]} c3 {[%emt 00:00:02] [%clk 00:14:16]} 10. bxc3
{[%emt 00:00:01] [%clk 00:15:37]} O-O {[%emt 00:00:02] [%clk 00:14:23]} 11. Nb3
{[%emt 00:00:03] [%clk 00:15:44]} Be7 {[%emt 00:00:02] [%clk 00:14:31]} 12. Nfd4
{[%emt 00:01:51] [%clk 00:14:03]} Bd7 {[%emt 00:00:06] [%clk 00:14:36]} 13. Nxc6
{[%emt 00:00:22] [%clk 00:13:51]} Bxc6 {[%emt 00:00:02] [%clk 00:14:44]} 14.
Bxc6 {[%emt 00:00:01] [%clk 00:14:00]} bxc6 {[%emt 00:00:02] [%clk 00:14:52]}
15. Bg5 {[%emt 00:01:13] [%clk 00:12:56]} h6 {[%emt 00:01:17] [%clk 00:13:46]}
16. Bxf6 {[%emt 00:00:19] [%clk 00:12:46]} Bxf6 {[%emt 00:00:01] [%clk
00:13:55]} 17. Rac1 {[%emt 00:01:46] [%clk 00:11:11]} Rfd8 {[%emt 00:00:10]
[%clk 00:13:54]} 18. c4 {[%emt 00:00:38] [%clk 00:10:44]} Rab8 {[%emt 00:00:42]
[%clk 00:13:22]} 19. Rxd8+ {[%clk 00:07:36]} Rxd8 {[%emt 00:03:54] [%clk
00:12:55]} 20. c5 {[%emt 00:00:02] [%clk 00:07:45]} Kf8 {[%emt 00:00:58] [%clk
00:12:06]} 21. Rc4 {[%emt 00:00:18] [%clk 00:07:38]} Ke8 {[%emt 00:01:54] [%clk
00:10:21]} 22. Ra4 {[%emt 00:00:11] [%clk 00:07:37]} Rd7 {[%emt 00:00:05] [%clk
00:10:26]} 23. e4 {[%emt 00:00:45] [%clk 00:07:02]} Kd8 {[%emt 00:01:11] [%clk
00:09:25]} 24. Ra6 {[%emt 00:01:33] [%clk 00:05:39]} Rc7 {[%emt 00:00:13] [%clk
00:09:22]} 25. Kf1 {[%emt 00:00:29] [%clk 00:05:20]} Kc8 {[%emt 00:00:55] [%clk
00:08:37]} 26. Ke2 {[%emt 00:00:02] [%clk 00:05:28]} Be7 {[%emt 00:00:48] [%clk
00:07:59]} 27. Ra4 {[%emt 00:00:49] [%clk 00:04:51]} Rd7 {[%emt 00:00:08] [%clk
00:08:00]} 28. Ke3 {[%emt 00:01:17] [%clk 00:03:43]} e5 {[%emt 00:00:58] [%clk
00:07:13]} 29. Ke2 {[%emt 00:01:14] [%clk 00:02:39]} Rb7 {[%emt 00:02:31] [%clk
00:04:52]} 30. Ra6 {[%emt 00:00:12] [%clk 00:02:37]} Rc7 {[%emt 00:00:21] [%clk
00:04:40]} 31. f3 {[%emt 00:01:31] [%clk 00:01:17]} h5 {[%emt 00:00:06] [%clk
00:04:43]} 32. Kd3 {[%emt 00:00:29] [%clk 00:00:59]} Rd7+ {[%emt 00:00:06] [%clk
00:04:46]} 33. Kc2 {[%emt 00:00:18] [%clk 00:00:49]} Kb7 {[%emt 00:00:23] [%clk
00:04:35]} 34. Ra4 {[%emt 00:00:02] [%clk 00:00:58]} f6 {[%emt 00:01:16] [%clk
00:03:29]} 35. Rc4 {[%emt 00:00:33] [%clk 00:00:32]} Ka6 {[%emt 00:00:51] [%clk
00:02:51]} 36. Rb4 {[%emt 00:00:09] [%clk 00:00:33]} Rd8 {[%emt 00:00:11] [%clk
00:02:50]} 37. Ra4+ {[%emt 00:00:23] [%clk 00:00:21]} Kb7 {[%emt 00:00:04] [%clk
00:02:55]} 38. Rb4+ {[%emt 00:00:17] [%clk 00:00:14]} Ka6 {[%emt 00:00:02] [%clk
00:03:03]} 39. Ra4+ {[%clk 00:00:23]} Kb7 {[%emt 00:00:05] [%clk 00:03:08]} 40.
Na5+ {[%emt 00:00:12] [%clk 00:00:21]} Kc7 {[%emt 00:00:11] [%clk 00:03:07]} 41.
Rb4 {[%emt 00:00:13] [%clk 00:00:18]} Rd7 {[%emt 00:01:04] [%clk 00:02:12]} 42.
Rb7+ {[%emt 00:00:13] [%clk 00:00:17]} Kc8 {[%emt 00:00:01] [%clk 00:02:20]} 43.
Rxd7 {[%emt 00:00:02] [%clk 00:00:25]} Kxd7 {[%emt 00:00:01] [%clk 00:02:28]}
44. Nb3 {[%emt 00:00:01] [%clk 00:00:34]} g6 {[%emt 00:00:22] [%clk 00:02:16]}
45. Kc3 {[%emt 00:00:32] [%clk 00:00:12]} f5 {[%emt 00:00:17] [%clk 00:02:09]}
46. Kb4 {[%emt 00:00:11] [%clk 00:00:12]} f4 {[%emt 00:00:14] [%clk 00:02:05]}
47. gxf4 {[%emt 00:00:11] [%clk 00:00:12]} exf4 {[%clk 00:02:13]} 48. h3 {[%emt
00:00:10] [%clk 00:00:12]} Bf6 {[%emt 00:00:19] [%clk 00:02:04]} 49. Kc4 {[%emt
00:00:11] [%clk 00:00:11]} g5 {[%emt 00:00:10] [%clk 00:02:03]} 50. Nc1 {[%emt
00:00:09] [%clk 00:00:12]} Ke6 {[%emt 00:00:14] [%clk 00:01:59]} 51. Nd3 {[%emt
00:00:02] [%clk 00:00:21]} a5 {[%emt 00:00:02] [%clk 00:02:07]} 52. Kb3 {[%emt
00:00:19] [%clk 00:00:12]} Bd8 {[%emt 00:00:08] [%clk 00:02:09]} 53. Kc3 {[%emt
00:00:10] [%clk 00:00:12]} Bc7 {[%emt 00:00:14] [%clk 00:02:05]} 54. Kd2 {[%emt
00:00:10] [%clk 00:00:12]} Kf6 {[%emt 00:01:43] [%clk 00:00:32]} 55. Ke2 {[%emt
00:00:03] [%clk 00:00:19]} Bb8 {[%emt 00:00:17] [%clk 00:00:25]} 56. Kf2 {[%emt
00:00:15] [%clk 00:00:13]} Be5 {[%emt 00:00:03] [%clk 00:00:33]} 57. Kg2 {[%emt
00:00:11] [%clk 00:00:12]} Bd4 {[%emt 00:00:08] [%clk 00:00:34]} 58. Kf1 {[%emt
00:00:12] [%clk 00:00:11]} Be3 {[%emt 00:00:01] [%clk 00:00:42]} 59. Kg2 {[%emt
00:00:04] [%clk 00:00:17]} Ke6 {[%emt 00:00:13] [%clk 00:00:39]} 60. Kf1 {[%emt
00:00:14] [%clk 00:00:14]} Kf6 {[%emt 00:00:03] [%clk 00:00:46]} 61. Ke2 {[%emt
00:00:05] [%clk 00:00:19]} Ke6 {[%emt 00:00:03] [%clk 00:00:53]} 62. Kd1 {[%emt
00:00:08] [%clk 00:00:20]} Kf6 {[%emt 00:00:15] [%clk 00:00:49]} 63. a4 {[%clk
00:00:30]} Ke6 {[%emt 00:00:38] [%clk 00:00:20]} 64. Ke2 {[%clk 00:00:39]} Kf6
{[%emt 00:00:01] [%clk 00:00:28]} 65. Kf1 {[%emt 00:00:01] [%clk 00:00:48]} Ke6
{[%emt 00:00:02] [%clk 00:00:36]} 66. Ke1 {[%emt 00:00:38] [%clk 00:00:21]} Kf6
{[%emt 00:00:07] [%clk 00:00:40]} 67. Ke2 {[%emt 00:00:01] [%clk 00:00:30]} Ke6
{[%emt 00:00:09] [%clk 00:00:41]} 68. Kf1 {[%clk 00:00:38]} Bd2 {[%emt 00:00:26]
[%clk 00:00:25]} 69. Nb2 {[%emt 00:00:35] [%clk 00:00:14]} Bc3 {[%emt 00:00:04]
[%clk 00:00:31]} 70. Nc4 {[%emt 00:00:06] [%clk 00:00:18]} Kf6 {[%emt 00:00:02]
[%clk 00:00:38]} 71. Ke2 {[%emt 00:00:16] [%clk 00:00:12]} Bb4 {[%emt 00:00:07]
[%clk 00:00:42]} 72. Kd3 {[%emt 00:00:10] [%clk 00:00:12]} Ke6 {[%emt 00:00:02]
[%clk 00:00:49]} 73. Kd4 {[%emt 00:00:08] [%clk 00:00:14]} Be1 {[%emt 00:00:02]
[%clk 00:00:57]} 74. e5 {[%emt 00:00:11] [%clk 00:00:13]} g4 {[%emt 00:00:45]
[%clk 00:00:22]} 75. fxg4 {[%emt 00:00:01] [%clk 00:00:21]} hxg4 {[%emt
00:00:02] [%clk 00:00:31]} 76. hxg4 {[%clk 00:00:31]} f3 {[%emt 00:00:01] [%clk
00:00:39]} 77. Ke3 {[%emt 00:00:13] [%clk 00:00:28]} f2 {[%emt 00:00:28] [%clk
00:00:20]} 78. Ke2 {[%clk 00:00:38]} Kd5 {[%emt 00:00:03] [%clk 00:00:27]} 79.
g5 {[%emt 00:00:26] [%clk 00:00:22]} Ke6 {[%emt 00:00:25] [%clk 00:00:13]} 80.
g6 {[%emt 00:00:01] [%clk 00:00:31]} Bb4 {[%emt 00:00:05] [%clk 00:00:17]} 81.
Kxf2 {[%emt 00:00:03] [%clk 00:00:38]} Bxc5+ {[%emt 00:00:02] [%clk 00:00:25]}
82. Kf3 {[%clk 00:00:47]} Bf8 {[%emt 00:00:08] [%clk 00:00:27]} 83. Ke4 {[%emt
00:00:02] [%clk 00:00:56]} Bg7 {[%emt 00:00:02] [%clk 00:00:35]} 84. Nxa5 {[%emt
00:00:54] [%clk 00:00:12]} Bxe5 {[%emt 00:00:03] [%clk 00:00:41]} 85. Nxc6
{[%emt 00:00:02] [%clk 00:00:21]} Bh8 {[%emt 00:00:02] [%clk 00:00:49]} 86. a5
{[%emt 00:00:11] [%clk 00:00:20]} Kd6 {[%emt 00:00:03] [%clk 00:00:56]} 87. Nb4
{[%emt 00:00:07] [%clk 00:00:22]} Bc3 {[%emt 00:00:43] [%clk 00:00:23]} 88. a6
{[%emt 00:00:02] [%clk 00:00:31]} 1-0

[Site "Europe Echecs"]

[Event "Championnat d'Europe Rapide"]
[Date "2024.12.08"]
[White "Smeets, Jan"]
[Black "Boyer, Mahel"]
[WhiteElo "2552"]
[BlackElo "2526"]
[Round "11.10"]
[Result "0-1"]
[TimeControl "900+10"]

1. e4 {[%clk 00:15:19]} g6 {[%emt 00:00:02] [%clk 00:15:18]} 2. d4 {[%emt
00:00:04] [%clk 00:15:25]} Bg7 {[%emt 00:00:01] [%clk 00:15:26]} 3. Nc3 {[%emt
00:00:02] [%clk 00:15:34]} d6 {[%emt 00:00:02] [%clk 00:15:35]} 4. f4 {[%emt
00:00:06] [%clk 00:15:37]} Nf6 {[%emt 00:00:06] [%clk 00:15:39]} 5. Nf3 {[%emt
00:00:13] [%clk 00:15:34]} O-O {[%emt 00:00:09] [%clk 00:15:40]} 6. Bd3 {[%emt
00:00:14] [%clk 00:15:31]} Nc6 {[%emt 00:00:01] [%clk 00:15:48]} 7. O-O {[%emt
00:00:27] [%clk 00:15:14]} e5 {[%emt 00:00:02] [%clk 00:15:57]} 8. d5 {[%emt
00:00:12] [%clk 00:15:12]} Nd4 {[%clk 00:16:05]} 9. f5 {[%emt 00:00:03] [%clk
00:15:20]} c6 {[%emt 00:00:06] [%clk 00:16:09]} 10. Kh1 {[%emt 00:00:49] [%clk
00:14:40]} cxd5 {[%emt 00:03:30] [%clk 00:12:49]} 11. Nxd4 {[%emt 00:01:32]
[%clk 00:13:18]} dxe4 {[%emt 00:02:01] [%clk 00:10:58]} 12. Nxe4 {[%emt
00:00:03] [%clk 00:13:26]} Nxe4 {[%emt 00:00:05] [%clk 00:11:03]} 13. Bxe4
{[%emt 00:00:04] [%clk 00:13:32]} exd4 {[%emt 00:00:03] [%clk 00:11:09]} 14. Qf3
{[%emt 00:00:27] [%clk 00:13:15]} Bxf5 {[%emt 00:00:54] [%clk 00:10:25]} 15.
Bxf5 {[%emt 00:00:14] [%clk 00:13:11]} gxf5 {[%emt 00:00:01] [%clk 00:10:34]}
16. Qxf5 {[%emt 00:00:39] [%clk 00:12:43]} Rc8 {[%emt 00:00:01] [%clk 00:10:42]}
17. Bg5 {[%emt 00:00:09] [%clk 00:12:43]} Qc7 {[%emt 00:01:28] [%clk 00:09:25]}
18. Rf2 {[%emt 00:03:24] [%clk 00:09:29]} Qc5 {[%emt 00:00:40] [%clk 00:08:55]}
19. Qf4 {[%emt 00:01:37] [%clk 00:08:02]} Qe5 {[%emt 00:02:19] [%clk 00:06:46]}
20. Qd2 {[%emt 00:00:32] [%clk 00:07:40]} f5 {[%emt 00:02:55]} 21. Re1 {[%clk
00:05:47]} Rxc2 {[%emt 00:00:19] [%clk 00:05:55]} 22. Qd1 {[%emt 00:01:37] [%clk
00:04:21]} Rxf2 {[%emt 00:00:04] [%clk 00:06:00]} 23. Rxe5 {[%emt 00:00:02]
[%clk 00:04:29]} dxe5 {[%emt 00:00:09] [%clk 00:06:01]} 24. Qb3+ {[%emt
00:00:04] [%clk 00:04:35]} Kh8 {[%emt 00:00:53] [%clk 00:05:18]} 25. Kg1 {[%emt
00:00:20] [%clk 00:04:25]} Re2 {[%clk 00:05:27]} 26. Kf1 {[%emt 00:00:55] [%clk
00:03:41]} d3 {[%emt 00:00:23] [%clk 00:05:14]} 27. Qxd3 {[%emt 00:00:03] [%clk
00:03:48]} Rxb2 {[%clk 00:05:22]} 28. Qd7 {[%emt 00:00:17] [%clk 00:03:41]} Rc2
{[%emt 00:02:00] [%clk 00:03:32]} 29. Be7 {[%emt 00:02:05] [%clk 00:01:46]} Rfc8
{[%emt 00:00:03] [%clk 00:03:39]} 30. Bd8 {[%emt 00:00:44] [%clk 00:01:12]} h6
{[%emt 00:00:24] [%clk 00:03:24]} 31. Qe8+ {[%emt 00:00:03] [%clk 00:01:21]} Kh7
{[%clk 00:03:33]} 32. Qd7 {[%emt 00:00:01] [%clk 00:01:30]} R8c6 {[%emt
00:01:30] [%clk 00:02:12]} 33. Qxf5+ {[%emt 00:00:23] [%clk 00:01:17]} Kh8
{[%clk 00:02:21]} 34. h4 {[%emt 00:00:24] [%clk 00:01:03]} Rd2 {[%emt 00:00:12]
[%clk 00:02:19]} 0-1

[Site "Europe Echecs"]

[Event "Championnat d'Europe Rapide"]
[Date "2024.12.08"]
[White "Paichadze, Luka"]
[Black "Grigoriants, Sergey"]
[WhiteElo "2532"]
[BlackElo "2542"]
[Round "11.11"]
[Result "1-0"]
[TimeControl "900+10"]

1. e4 {[%emt 00:00:02] [%clk 00:15:17]} e6 {[%emt 00:00:24] [%clk 00:14:56]} 2.
d4 {[%emt 00:00:02] [%clk 00:15:25]} d5 {[%emt 00:00:02] [%clk 00:15:04]} 3. e5
{[%emt 00:00:01] [%clk 00:15:34]} c5 {[%emt 00:00:04] [%clk 00:15:10]} 4. c3
{[%emt 00:00:01] [%clk 00:15:43]} Nc6 {[%emt 00:00:08] [%clk 00:15:13]} 5. Nf3
{[%emt 00:00:01] [%clk 00:15:51]} Bd7 {[%emt 00:00:03] [%clk 00:15:20]} 6. Be2
{[%emt 00:00:01] [%clk 00:16:00]} f6 {[%emt 00:00:07] [%clk 00:15:23]} 7. O-O
{[%emt 00:00:23] [%clk 00:15:48]} fxe5 {[%emt 00:00:09] [%clk 00:15:23]} 8. Nxe5
{[%emt 00:00:05] [%clk 00:15:53]} Nxe5 {[%emt 00:00:03] [%clk 00:15:29]} 9. dxe5
{[%emt 00:00:02] [%clk 00:16:02]} Qc7 {[%emt 00:00:09] [%clk 00:15:29]} 10. f4
{[%emt 00:00:05] [%clk 00:16:07]} Ne7 {[%emt 00:01:12] [%clk 00:14:26]} 11. Nd2
{[%emt 00:00:39] [%clk 00:15:39]} O-O-O {[%emt 00:02:43] [%clk 00:11:53]} 12.
Nf3 {[%emt 00:00:04] [%clk 00:15:45]} h6 {[%emt 00:00:03] [%clk 00:12:01]} 13.
Bd3 {[%emt 00:01:04] [%clk 00:14:50]} Kb8 {[%emt 00:02:11] [%clk 00:10:00]} 14.
Be3 {[%emt 00:00:19] [%clk 00:14:41]} Nc6 {[%emt 00:00:03] [%clk 00:10:08]} 15.
Nh4 {[%emt 00:00:35] [%clk 00:14:15]} d4 {[%emt 00:01:04] [%clk 00:09:14]} 16.
cxd4 {[%emt 00:00:57] [%clk 00:13:28]} cxd4 {[%emt 00:00:02] [%clk 00:09:22]}
17. Bf2 {[%emt 00:00:14] [%clk 00:13:24]} g5 {[%emt 00:00:49] [%clk 00:08:43]}
18. Ng6 {[%emt 00:00:02] [%clk 00:13:32]} Rg8 {[%emt 00:00:02] [%clk 00:08:52]}
19. fxg5 {[%emt 00:01:06] [%clk 00:12:36]} hxg5 {[%emt 00:00:04] [%clk
00:08:57]} 20. Nxf8 {[%emt 00:01:41] [%clk 00:11:05]} Rgxf8 {[%emt 00:00:05]
[%clk 00:09:03]} 21. Bg3 {[%emt 00:00:06] [%clk 00:11:09]} Nb4 {[%emt 00:00:47]
[%clk 00:08:25]} 22. Rxf8 {[%emt 00:00:35] [%clk 00:10:44]} Rxf8 {[%emt
00:00:02] [%clk 00:08:33]} 23. Qd2 {[%emt 00:03:17] [%clk 00:07:37]} Nxd3 {[%emt
00:01:41] [%clk 00:07:03]} 24. Qxd3 {[%clk 00:07:46]} Qb6 {[%emt 00:00:01] [%clk
00:07:12]} 25. Rd1 {[%emt 00:02:14] [%clk 00:05:42]} Bb5 {[%emt 00:00:51] [%clk
00:06:30]} 26. Qd2 {[%emt 00:00:02] [%clk 00:05:51]} Be2 {[%emt 00:00:44] [%clk
00:05:56]} 27. Rc1 {[%emt 00:01:36] [%clk 00:04:24]} d3+ {[%emt 00:00:05] [%clk
00:06:00]} 28. Kh1 {[%emt 00:00:01] [%clk 00:04:33]} Qd4 {[%emt 00:00:29] [%clk
00:05:42]} 29. h3 {[%emt 00:00:43] [%clk 00:04:00]} a6 {[%emt 00:01:07] [%clk
00:04:46]} 30. Kh2 {[%emt 00:00:07] [%clk 00:04:02]} Rc8 {[%emt 00:01:11] [%clk
00:03:45]} 31. Be1 {[%emt 00:01:13] [%clk 00:02:59]} Rg8 {[%emt 00:01:02] [%clk
00:02:52]} 32. b3 {[%emt 00:02:05] [%clk 00:01:05]} g4 {[%emt 00:00:38] [%clk
00:02:24]} 33. Rc4 {[%emt 00:00:13] [%clk 00:01:03]} Qd7 {[%emt 00:00:44] [%clk
00:01:50]} 34. h4 {[%emt 00:00:08] [%clk 00:01:05]} g3+ {[%emt 00:00:14] [%clk
00:01:45]} 35. Kh3 {[%emt 00:00:55] [%clk 00:00:21]} Qf7 {[%emt 00:01:14] [%clk
00:00:41]} 36. Qf4 {[%emt 00:00:01] [%clk 00:00:30]} Qg7 {[%emt 00:00:13] [%clk
00:00:38]} 37. Rd4 {[%emt 00:00:08] [%clk 00:00:32]} Qc7 {[%emt 00:00:27] [%clk
00:00:21]} 38. Bxg3 {[%emt 00:00:06] [%clk 00:00:36]} Qc3 {[%emt 00:00:01] [%clk
00:00:29]} 39. Kh2 {[%emt 00:00:11] [%clk 00:00:35]} Bg4 {[%emt 00:00:21] [%clk
00:00:18]} 40. Qe3 {[%emt 00:00:17] [%clk 00:00:28]} Bf5 {[%emt 00:00:02] [%clk
00:00:26]} 41. Bf2 {[%emt 00:00:01] [%clk 00:00:38]} Qc6 {[%emt 00:00:13] [%clk
00:00:23]} 42. g4 {[%emt 00:00:04] [%clk 00:00:44]} Rxg4 {[%emt 00:00:20] [%clk
00:00:13]} 43. Rxg4 {[%emt 00:00:01] [%clk 00:00:52]} Bxg4 {[%emt 00:00:01]
[%clk 00:00:22]} 44. Qxd3 {[%emt 00:00:02] [%clk 00:01:00]} Kc8 {[%emt 00:00:15]
[%clk 00:00:17]} 45. Kg3 {[%emt 00:00:45] [%clk 00:00:25]} Bf5 {[%emt 00:00:02]
[%clk 00:00:26]} 46. Qe3 {[%emt 00:00:11] [%clk 00:00:23]} Kd7 {[%emt 00:00:24]
[%clk 00:00:13]} 47. Kf4 {[%emt 00:00:13] [%clk 00:00:20]} Qg2 {[%emt 00:00:05]
[%clk 00:00:17]} 48. Bg3 {[%emt 00:00:07] [%clk 00:00:23]} Qxa2 {[%emt 00:00:06]
[%clk 00:00:21]} 49. Kg5 {[%emt 00:00:02] [%clk 00:00:31]} Qc2 {[%emt 00:00:08]
[%clk 00:00:22]} 50. h5 {[%emt 00:00:12] [%clk 00:00:30]} Kc6 {[%emt 00:00:03]
[%clk 00:00:30]} 51. h6 {[%emt 00:00:05] [%clk 00:00:35]} Qd3 {[%emt 00:00:17]
[%clk 00:00:23]} 52. Qc1+ {[%emt 00:00:14] [%clk 00:00:30]} Kb5 {[%emt 00:00:04]
[%clk 00:00:29]} 53. Bf2 {[%emt 00:00:06] [%clk 00:00:34]} Qd8 {[%emt 00:00:15]
[%clk 00:00:24]} 54. Kf4 {[%emt 00:00:09] [%clk 00:00:34]} Qd5 {[%emt 00:00:11]
[%clk 00:00:25]} 55. Qe3 {[%emt 00:00:04] [%clk 00:00:39]} Kc6 {[%emt 00:00:16]
[%clk 00:00:20]} 56. Qb6+ {[%emt 00:00:26] [%clk 00:00:23]} Kd7 {[%emt 00:00:01]
[%clk 00:00:29]} 57. Qe3 {[%emt 00:00:05] [%clk 00:00:27]} Ke8 {[%emt 00:00:08]
[%clk 00:00:31]} 58. Qg3 {[%emt 00:00:18] [%clk 00:00:19]} Qe4+ {[%emt 00:00:16]
[%clk 00:00:26]} 59. Kg5 {[%clk 00:00:28]} Qb4 {[%emt 00:00:01] [%clk 00:00:35]}
60. Kh5 {[%emt 00:00:11] [%clk 00:00:27]} Qf8 {[%emt 00:00:16] [%clk 00:00:29]}
61. Be3 {[%emt 00:00:07] [%clk 00:00:30]} Qf7+ {[%emt 00:00:06] [%clk 00:00:33]}
62. Kh4 {[%clk 00:00:39]} Qe7+ {[%emt 00:00:04] [%clk 00:00:40]} 63. Bg5 {[%emt
00:00:10] [%clk 00:00:39]} Qb4+ {[%emt 00:00:06] [%clk 00:00:43]} 64. Bf4 {[%emt
00:00:20] [%clk 00:00:29]} Qe7+ {[%emt 00:00:10] [%clk 00:00:42]} 65. Bg5 {[%emt
00:00:01] [%clk 00:00:39]} Qb4+ {[%emt 00:00:15] [%clk 00:00:38]} 66. Kh5 {[%emt
00:00:12] [%clk 00:00:37]} Qe4 {[%emt 00:00:13] [%clk 00:00:35]} 67. Bf4 {[%emt
00:00:06] [%clk 00:00:40]} Qh1+ {[%emt 00:00:15] [%clk 00:00:30]} 68. Kg5 {[%emt
00:00:05] [%clk 00:00:45]} Kf7 {[%emt 00:00:02] [%clk 00:00:38]} 69. Qc3 {[%emt
00:00:03] [%clk 00:00:52]} Qg2+ {[%emt 00:00:24] [%clk 00:00:24]} 70. Bg3 {[%emt
00:00:01] [%clk 00:01:01]} Qc6 {[%emt 00:00:04] [%clk 00:00:31]} 71. Qd2 {[%emt
00:00:16] [%clk 00:00:53]} b6 {[%emt 00:00:26] [%clk 00:00:16]} 72. Qd1 {[%emt
00:00:07] [%clk 00:00:55]} Qc7 {[%emt 00:00:14] [%clk 00:00:13]} 73. Be1 {[%emt
00:00:34] [%clk 00:00:31]} Qe7+ {[%emt 00:00:05] [%clk 00:00:18]} 74. Kf4 {[%emt
00:00:02] [%clk 00:00:39]} Kg6 {[%emt 00:00:05] [%clk 00:00:22]} 75. Qd4 {[%emt
00:00:18] [%clk 00:00:32]} Qg5+ {[%emt 00:00:07] [%clk 00:00:25]} 76. Kf3 {[%emt
00:00:01] [%clk 00:00:41]} Qh5+ {[%emt 00:00:04] [%clk 00:00:31]} 77. Kg3 {[%emt
00:00:15] [%clk 00:00:35]} Qg5+ {[%emt 00:00:10] [%clk 00:00:32]} 78. Kf2 {[%emt
00:00:03] [%clk 00:00:42]} Qxh6 {[%emt 00:00:08] [%clk 00:00:34]} 79. Ke2 {[%emt
00:00:19] [%clk 00:00:33]} Qh5+ {[%emt 00:00:14] [%clk 00:00:30]} 80. Kd2 {[%emt
00:00:05] [%clk 00:00:38]} Qf3 {[%emt 00:00:03] [%clk 00:00:36]} 81. Qe3 {[%emt
00:00:13] [%clk 00:00:35]} Qd5+ {[%emt 00:00:12] [%clk 00:00:35]} 82. Kc3 {[%emt
00:00:02] [%clk 00:00:44]} a5 {[%emt 00:00:19] [%clk 00:00:25]} 83. Qg1+ {[%emt
00:00:21] [%clk 00:00:32]} Kf7 {[%emt 00:00:04] [%clk 00:00:33]} 84. Qd4 {[%emt
00:00:03] [%clk 00:00:38]} Qf3+ {[%emt 00:00:18] [%clk 00:00:25]} 85. Kb2 {[%emt
00:00:06] [%clk 00:00:41]} Qe2+ {[%emt 00:00:02] [%clk 00:00:34]} 86. Bd2 {[%emt
00:00:02] [%clk 00:00:49]} Kg6 {[%emt 00:00:22] [%clk 00:00:23]} 87. Qf4 {[%emt
00:00:15] [%clk 00:00:43]} Qd3 {[%emt 00:00:12] [%clk 00:00:21]} 88. Ka3 {[%emt
00:00:29] [%clk 00:00:24]} Kf7 {[%emt 00:00:11] [%clk 00:00:20]} 89. Qe3 {[%emt
00:00:16] [%clk 00:00:18]} Qb5 {[%emt 00:00:12] [%clk 00:00:19]} 90. Qc3 {[%emt
00:00:06] [%clk 00:00:22]} Qd5 {[%emt 00:00:06] [%clk 00:00:22]} 91. Be3 {[%emt
00:00:06] [%clk 00:00:25]} Kg6 {[%emt 00:00:11] [%clk 00:00:22]} 92. Bxb6 {[%emt
00:00:08] [%clk 00:00:28]} Bd3 {[%emt 00:00:15] [%clk 00:00:16]} 93. Bxa5 {[%emt
00:00:02] [%clk 00:00:36]} Kf5 {[%emt 00:00:02] [%clk 00:00:25]} 94. Bc7 {[%emt
00:00:10] [%clk 00:00:35]} Qa8+ {[%emt 00:00:12] [%clk 00:00:23]} 95. Kb2 {[%emt
00:00:08] [%clk 00:00:38]} Qg2+ {[%emt 00:00:02] [%clk 00:00:30]} 96. Ka3 {[%emt
00:00:02] [%clk 00:00:47]} Qa8+ {[%emt 00:00:01] [%clk 00:00:38]} 97. Ba5 {[%emt
00:00:02] [%clk 00:00:56]} Qd5 {[%emt 00:00:08] [%clk 00:00:40]} 98. Bb6 {[%emt
00:00:04] [%clk 00:01:02]} Qa8+ {[%emt 00:00:13] [%clk 00:00:36]} 99. Kb4 {[%emt
00:00:07] [%clk 00:01:05]} Qe4+ {[%emt 00:00:04] [%clk 00:00:42]} 100. Qd4
{[%emt 00:00:14] [%clk 00:01:01]} Qxd4+ {[%emt 00:00:26] [%clk 00:00:26]} 101.
Bxd4 {[%emt 00:00:01] [%clk 00:01:10]} Kg6 {[%emt 00:00:01] [%clk 00:00:35]}
102. Kc5 {[%emt 00:00:03] [%clk 00:01:17]} Kf7 {[%emt 00:00:01] [%clk 00:00:44]}
103. Kd6 {[%emt 00:00:02] [%clk 00:01:26]} Bf5 {[%emt 00:00:19] [%clk 00:00:34]}
104. b4 {[%emt 00:00:30] [%clk 00:01:06]} Ke8 {[%emt 00:00:04] [%clk 00:00:41]}
105. Bb6 {[%emt 00:00:04] [%clk 00:01:11]} Kf7 {[%emt 00:00:21] [%clk 00:00:29]}
106. Bd8 {[%emt 00:00:34] [%clk 00:00:48]} Bd3 {[%emt 00:00:07] [%clk 00:00:33]}
107. Bh4 {[%emt 00:00:30] [%clk 00:00:28]} Be2 {[%emt 00:00:16] [%clk 00:00:26]}
108. Kc6 {[%emt 00:00:03] [%clk 00:00:35]} Bf3+ {[%emt 00:00:04] [%clk
00:00:33]} 109. Kc5 {[%emt 00:00:06] [%clk 00:00:38]} Be2 {[%emt 00:00:16] [%clk
00:00:27]} 110. Kd6 {[%emt 00:00:06] [%clk 00:00:42]} Bf1 {[%emt 00:00:03] [%clk
00:00:34]} 111. Kc6 {[%emt 00:00:23] [%clk 00:00:30]} Bg2+ {[%emt 00:00:02]
[%clk 00:00:41]} 112. Kb6 {[%emt 00:00:09] [%clk 00:00:30]} Ke8 {[%emt 00:00:13]
[%clk 00:00:39]} 113. Kc7 {[%emt 00:00:02] [%clk 00:00:38]} Bf1 {[%emt 00:00:03]
[%clk 00:00:47]} 114. Kc6 {[%emt 00:00:02] [%clk 00:00:46]} Bg2+ {[%emt
00:00:43] [%clk 00:00:13]} 115. Kd6 {[%emt 00:00:02] [%clk 00:00:54]} Bf1 {[%emt
00:00:11] [%clk 00:00:12]} 116. Kxe6 {[%emt 00:00:02] [%clk 00:01:02]} 1-0

[Site "Europe Echecs"]